{"text_format":"3","workbook":"xlsx","n_sheets":2,"sheets":["Bắt đầu","Hóa đơn dịch vụ"],"not_rendered":{"images":1,"defined_names":1},"read":"whole","date_system":"1900"}

{"sheet":"Bắt đầu","index":0,"n_rows":8,"n_cols":2,"rows_kept":8}
[null,"GIỚI THIỆU VỀ MẪU NÀY"]
[null,"Sử dụng mẫu này để tạo một hóa đơn dịch vụ."]
[null,"Điền thông tin số hóa đơn, ngày tháng, tên, địa chỉ, khẩu hiệu công ty và bên nhận."]
[null,"Nhập thông tin vào bảng."]
[null,"Tổng sẽ được tự động tính toán cho bạn."]
[null,"Lưu ý: "]
[null,"Hướng dẫn bổ sung được cung cấp trong cột A trong trang tính HOÁ ĐƠN DỊCH VỤ. Văn bản này được cố ý ẩn đi. Để loại bỏ văn bản, chọn cột A, rồi chọn XÓA. Để bỏ ẩn văn bản, chọn cột A, rồi thay đổi màu phông chữ."]
[null,"Để tìm hiểu thêm về bảng, hãy nhấn SHIFT rồi nhấn F10 trong bảng, chọn tùy chọn BẢNG, sau đó chọn VĂN BẢN THAY THẾ."]

{"sheet":"Hóa đơn dịch vụ","index":1,"n_rows":44,"n_cols":5,"rows_kept":44,"merged":[[0,1,0,2],[0,3,0,4],[2,1,2,3],[3,1,3,3],[4,1,4,2],[5,1,5,2],[6,1,6,2],[7,1,7,2],[41,1,41,2],[41,3,41,4],[43,1,43,4]]}
[null,"Trình giữ chỗ biểu trưng nằm trong ô này.",null,"HÓA ĐƠN"]
[]
[null,"Tên công ty bạn"]
[null,"Khẩu hiệu của công ty bạn"]
[null,"Địa chỉ đường",null,"SỐ HÓA ĐƠN","Số"]
[null,"Thành phố, Tiểu bang mã ZIP",null,"NGÀY ",{"$f":"TODAY()","v":"2022-05-07"}]
[null,"Điện thoại Fax",null,"MÃ KHÁCH HÀNG ","Mã"]
[null,"Email"]
[null,"BÊN NHẬN","Tên"]
[null,null,"Tên công ty"]
[null,null,"Địa chỉ đường"]
[null,null,"Thành phố, Tiểu bang Mã ZIP"]
[null,null,"Điện thoại"]
[null,"NHÂN VIÊN BÁN HÀNG","CÔNG VIỆC","ĐIỀU KHOẢN THANH TOÁN","HẠN THANH TOÁN"]
[{"$nulls":3},"Thanh toán ngay khi nhận"]
[]
[null,"SỐ LƯỢNG","MÔ TẢ","ĐƠN GIÁ","TỔNG DÒNG"]
[{"$nulls":4},{"$f":"IF(SUM(B18)>0,SUM(B18*'Hóa đơn dịch vụ'!$D18),\"\")","v":""}]
[{"$nulls":4},{"$f":"IF(SUM(B19)>0,SUM(B19*'Hóa đơn dịch vụ'!$D19),\"\")","v":""}]
[{"$nulls":4},{"$f":"IF(SUM(B20)>0,SUM(B20*'Hóa đơn dịch vụ'!$D20),\"\")","v":""}]
[{"$nulls":4},{"$f":"IF(SUM(B21)>0,SUM(B21*'Hóa đơn dịch vụ'!$D21),\"\")","v":""}]
[{"$nulls":4},{"$f":"IF(SUM(B22)>0,SUM(B22*'Hóa đơn dịch vụ'!$D22),\"\")","v":""}]
[{"$nulls":4},{"$f":"IF(SUM(B23)>0,SUM(B23*'Hóa đơn dịch vụ'!$D23),\"\")","v":""}]
[{"$nulls":4},{"$f":"IF(SUM(B24)>0,SUM(B24*'Hóa đơn dịch vụ'!$D24),\"\")","v":""}]
[{"$nulls":4},{"$f":"IF(SUM(B25)>0,SUM(B25*'Hóa đơn dịch vụ'!$D25),\"\")","v":""}]
[{"$nulls":4},{"$f":"IF(SUM(B26)>0,SUM(B26*'Hóa đơn dịch vụ'!$D26),\"\")","v":""}]
[{"$nulls":4},{"$f":"IF(SUM(B27)>0,SUM(B27*'Hóa đơn dịch vụ'!$D27),\"\")","v":""}]
[{"$nulls":4},{"$f":"IF(SUM(B28)>0,SUM(B28*'Hóa đơn dịch vụ'!$D28),\"\")","v":""}]
[{"$nulls":4},{"$f":"IF(SUM(B29)>0,SUM(B29*'Hóa đơn dịch vụ'!$D29),\"\")","v":""}]
[{"$nulls":4},{"$f":"IF(SUM(B30)>0,SUM(B30*'Hóa đơn dịch vụ'!$D30),\"\")","v":""}]
[{"$nulls":4},{"$f":"IF(SUM(B31)>0,SUM(B31*'Hóa đơn dịch vụ'!$D31),\"\")","v":""}]
[{"$nulls":4},{"$f":"IF(SUM(B32)>0,SUM(B32*'Hóa đơn dịch vụ'!$D32),\"\")","v":""}]
[{"$nulls":4},{"$f":"IF(SUM(B33)>0,SUM(B33*'Hóa đơn dịch vụ'!$D33),\"\")","v":""}]
[{"$nulls":4},{"$f":"IF(SUM(B34)>0,SUM(B34*'Hóa đơn dịch vụ'!$D34),\"\")","v":""}]
[{"$nulls":4},{"$f":"IF(SUM(B35)>0,SUM(B35*'Hóa đơn dịch vụ'!$D35),\"\")","v":""}]
[{"$nulls":4},{"$f":"IF(SUM(B36)>0,SUM(B36*'Hóa đơn dịch vụ'!$D36),\"\")","v":""}]
[{"$nulls":4},{"$f":"IF(SUM(B37)>0,SUM(B37*'Hóa đơn dịch vụ'!$D37),\"\")","v":""}]
[{"$nulls":3},"TỔNG PHỤ",{"$f":"IF(SUM(E18:E37)>0,SUM(E18:E37),\"\")","v":""}]
[{"$nulls":3},"THUẾ DOANH THU"]
[{"$nulls":3},"TỔNG",{"$f":"IF(SUM(E38)>0,SUM((E38*E39)+E38),\"\")","v":""}]
[]
[null,"Thanh toán toàn bộ cho",null,{"$f":"B3","v":"Tên công ty bạn"}]
[]
[null,"CẢM ƠN BẠN ĐÃ GIAO DỊCH VỚI CHÚNG TÔI!"]